[Event "Germany Countries-chT Youth 2022"]
[Site "Wiesbaden"]
[Date "2022.10.01"]
[Round "2"]
[White "Rudolph, Eva"]
[Black "Basovskiy, Jana"]
[Result "1/2-1/2"]
[ECO "B23"]
[WhiteElo "1911"]
[BlackElo "1858"]
[Annotator "TA"]
[PlyCount "58"]
[EventDate "2022.09.28"]
[EventType "team-tourn"]
[EventRounds "7"]
[EventCountry "GER"]
[SourceTitle "playchess.com"]
[Source "ChessBase"]
[SourceQuality "1"]
[TimeControl "40/5400+30:1800+30"]

{[%evp 14,58,0,1,31,22,26,10,44,25,29,32,141,140,163,75,213,224,349,352,350,360,336,293,247,148,220,16,37,0,0,0,0,0,0,0,1,0,0,0,0,0,0,0,0,0,0]} 1. e4 {[%emt 0:00:03]} c5 {[%emt 0:00:03]} 2. Nc3 {[%emt 0:00:06]} Nc6 {[%emt 0:00:49]} 3. f4 {[%emt 0:00:10]} g6 {[%emt 0:01:03]} 4. Nf3 {[%emt 0:00:20]} Bg7 {[%emt 0:00:05]} 5. Bb5 {[%emt 0:00:37]} Nd4 {[%emt 0:00:18]} 6. d3 {[%emt 0:02:22]} Nxb5 {[%emt 0:08:00]} 7. Nxb5 {[%emt 0:00:10]} d5 {[%emt 0:11:35]} 8. O-O {[%emt 0:07:27]} Nf6 {[%emt 0:07:10] B23: Closed Sicilian: Lines without g3.} 9. e5 {[%emt 0:10:50]} Nd7 {[%emt 0:01:10] [#]} 10. Qe2 $146 {[%emt 0:02:33][%cal Of4f5]} ({Predecessor:} 10. e6 fxe6 11. Ng5 Nf8 12. c4 a6 13. Nc3 dxc4 14. dxc4 Qd4+ 15. Qxd4 Bxd4+ 16. Kh1 {1-0 (53) Dipankar,G (1670)-Velazquez Martinez,J (2179) ICC INT 2020}) 10... Nb6 {[%emt 0:10:20]} (10... a6 $5 {[%cal Ra6b5]} 11. Nc3 e6 $11) 11. a4 {[%emt 0:05:40] And now a5 would win.} a6 {[%emt 0:04:35]} 12. Nc3 {[%emt 0:01:00]} d4 {[%emt 0:00:18]} (12... Bg4 $1 $14) 13. Ne4 $16 {[%emt 0:00:46]} Qd5 {[%emt 0:12:03]} 14. Nf6+ {[%emt 0:11:32]} exf6 {[%emt 0:00:13]} (14... Bxf6 $16 15. exf6 Qe6 16. Qxe6 Bxe6) 15. exf6+ $18 {[%emt 0:00:10][%mdl 64] Discovered Attack} Kf8 {[%emt 0:00:27]} (15... Be6 {keeps fighting.}) 16. Qe7+ {[%emt 0:19:55]} Kg8 {[%emt 0:00:07] Threatens to win with ...Bf8.} 17. fxg7 {[%emt 0:00:53]} Kxg7 {[%emt 0:04:59]} 18. f5 {[%emt 0:01:03]} Bxf5 {[%emt 0:00:57] [#]} 19. Nh4 {[%emt 0:02:02]} (19. g4 $1 $18 {[%cal Rg4f5]} Be6 {[#]} 20. Ne5 $1 {[%mdl 512]}) 19... Rhe8 {[%emt 0:13:08]} (19... h6 $16) 20. Nxf5+ $2 {[%emt 0:00:30]} (20. Qg5 $18 {[%cal Rh4f5]} Re5 21. g4 Bxg4 22. Qf6+ (22. Qxg4 Rae8 $16) 22... Kf8 23. Bh6+ (23. Qxb6 Kg8 $16) 23... Ke8 24. Qxb6) 20... Qxf5 $11 {[%emt 0:00:30]} 21. Qh4 {[%emt 0:00:30]} Qe5 $1 {[%emt 0:00:30] The position is equal.} 22. Bf4 {[%emt 0:00:30]} ({But not} 22. a5 Nd5 23. Bh6+ Kg8 $17) 22... Qh5 {[%emt 0:00:30]} 23. Qxh5 {[%emt 0:00:30]} gxh5 {[%emt 0:00:30]} 24. Bd6 $36 {[%emt 0:00:30][%mdl 2048] White has good play.} Rac8 {[%emt 0:00:30]} 25. Rf5 {[%emt 0:00:30][%csl LRc5,LRh5]} Nd7 {[%emt 0:00:30]} 26. Raf1 {[%emt 0:00:30]} f6 {[%emt 0:00:30]} 27. Rxh5 {[%emt 0:00:30]} Re2 {[%emt 0:00:30]} 28. Rf2 {[%emt 0:00:30]} Re1+ {[%emt 0:00:30]} 29. Rf1 {[%emt 0:00:30]} Re2 {[%emt 0:00:30] Black defended with fortune.  Weighted Error Value: White=0.29 (precise) /Black=0.40} 1/2-1/2

[Event "Germany Countries-chT Youth 2022"]
[Site "Wiesbaden"]
[Date "2022.10.01"]
[Round "2"]
[White "Haubold, Christian Lucas"]
[Black "Hubert, Charlotte"]
[Result "1/2-1/2"]
[ECO "B90"]
[WhiteElo "1888"]
[BlackElo "1671"]
[Annotator "NA RC COMBH"]
[PlyCount "35"]
[EventDate "2022.09.28"]
[EventType "team-tourn"]
[EventRounds "7"]
[EventCountry "GER"]
[SourceTitle "playchess.com"]
[Source "ChessBase"]
[SourceQuality "1"]
[TimeControl "40/5400+30:1800+30"]

1. e4 {[%emt 0:00:03]} c5 {[%emt 0:00:10]} 2. Nf3 {[%emt 0:00:10]} d6 {[%emt 0:00:09]} 3. d4 {[%emt 0:00:10]} cxd4 {[%emt 0:00:06]} 4. Nxd4 {[%emt 0:00:11]} Nf6 {[%emt 0:00:10]} 5. Nc3 {[%emt 0:00:28]} a6 {[%emt 0:00:07]} 6. Be3 {[%emt 0:00:35]} e5 {[%emt 0:00:10]} 7. Nb3 {[%emt 0:00:22]} Be7 {[%emt 0:00:12]} 8. h3 {[%emt 0:00:41]} h6 {[%emt 0:02:32]} 9. f4 {[%emt 0:01:40]} Nbd7 {[%emt 0:01:11]} 10. f5 {[%emt 0:04:55]} b5 {[%emt 0:02:42]} 11. Qf3 {[%emt 0:05:30]} Bb7 {[%emt 0:04:47]} 12. a3 {[%emt 0:05:19]} Rc8 {[%emt 0:03:36]} 13. Bd3 {[%emt 0:02:11]} Nb6 {[%emt 0:12:08]} 14. Bxb6 {[%emt 0:10:40]} Qxb6 {[%emt 0:00:11]} 15. a4 {[%emt 0:14:42]} b4 {[%emt 0:09:15]} 16. Nd5 {[%emt 0:07:13]} Bxd5 {[%emt 0:04:56]} 17. exd5 {[%emt 0:00:12]} O-O {[%emt 0:08:10]} 18. Be2 {[%emt 0:03:26]} 1/2-1/2

[Event "Germany Countries-chT Youth 2022"]
[Site "Wiesbaden"]
[Date "2022.10.01"]
[Round "2"]
[White "Semling, Johannes"]
[Black "Besou, Hussain"]
[Result "0-1"]
[ECO "A11"]
[WhiteElo "1861"]
[BlackElo "2119"]
[Annotator "TA"]
[PlyCount "110"]
[EventDate "2022.09.28"]
[EventType "team-tourn"]
[EventRounds "7"]
[EventCountry "GER"]
[SourceTitle "playchess.com"]
[Source "ChessBase"]
[SourceQuality "1"]
[TimeControl "40/5400+30:1800+30"]

{[%evp 13,110,17,12,5,5,2,10,14,28,23,34,35,33,29,46,30,48,-12,47,15,8,14,14,0,15,0,0,0,49,6,24,19,33,8,116,110,98,117,126,103,127,134,125,117,125,86,81,0,145,152,147,163,157,71,143,0,100,0,0,0,0,-495,-490,-440,-58,-69,-14,-30,-24,-76,-76,-76,-76,-29988,-78,-225,-223,-222,-222,-216,-211,-234,-229,-275,-275,-276,-262,-316,-308,-322,-322,-322,-315,-5870,-5870,-5302,-5065,-1797,-1614]} 1. Nf3 {[%emt 0:00:05]} Nf6 {[%emt 0:00:07]} 2. g3 {[%emt 0:00:08]} d5 {[%emt 0:00:06]} 3. Bg2 {[%emt 0:00:10]} Bf5 {[%emt 0:00:05]} 4. c4 {[%emt 0:01:22]} c6 {[%emt 0:00:07]} 5. O-O {[%emt 0:01:33]} e6 {[%emt 0:00:10]} 6. d3 {[%emt 0:01:56]} Be7 {[%emt 0:06:33]} 7. cxd5 {[%emt 0:01:57]} exd5 {[%emt 0:01:09]} 8. Qb3 {[%emt 0:00:42] A11: English Opening: 1...c6.} Qb6 {[%emt 0:01:00]} 9. Qc2 {[%emt 0:01:17]} O-O {[%emt 0:00:32]} 10. Nc3 {[%emt 0:00:41] The position is equal.} h6 {[%emt 0:05:13] 10...h6 is better than 10...Na6.} 11. e4 {[%emt 0:00:46]} dxe4 {[%emt 0:00:24]} 12. dxe4 {[%emt 0:00:09]} Bh7 {[%emt 0:00:06]} 13. Be3 {[%emt 0:00:32]} Qa6 {[%emt 0:00:29]} 14. Nd4 {[%emt 0:01:05]} Nbd7 {[%emt 0:01:25]} 15. f3 {[%emt 0:05:55] [#]} (15. Rfd1 $14) 15... Rfe8 $146 {[%emt 0:02:15]} (15... Nd5 $1 $11 16. Nxd5 cxd5) ({Predecessor:} 15... Rad8 16. Rad1 Ne5 17. Kh1 Nc4 18. Bf2 b5 19. b3 Na3 20. Qc1 c5 21. Nc2 c4 22. Nxa3 Bxa3 {½-½ (39) Efimenko,Z (2597)-Zilka,S (2608) Warsaw 2021}) 16. Rad1 {[%emt 0:04:54]} Rad8 {[%emt 0:01:10][%cal Of6d5]} 17. Rfe1 {[%emt 0:03:18]} Ne5 {[%emt 0:01:18][%cal Of6d5]} 18. Bf2 {[%emt 0:13:26]} Nd5 {[%emt 0:07:06]} 19. a3 {[%emt 0:05:26] Prevents Nb4.} Nxc3 {[%emt 0:03:38]} 20. Qxc3 {[%emt 0:00:22]} c5 {[%emt 0:03:30]} (20... Bf6 $1 $11) 21. Nf5 {[%emt 0:06:56]} (21. Nb3 $5 {[%cal Rc3e5]} Nd3 22. Bf1 $14) 21... Bf6 {[%emt 0:03:21]} 22. Rxd8 {[%emt 0:09:04]} (22. Bxc5 $2 Nd3 23. e5 (23. Nd4 $2 Nxe1 24. Bf1 Rxd4 $19) 23... Nxe1 24. Rxe1 Bxf5 $19) 22... Rxd8 {[%emt 0:01:07]} 23. Ne7+ {[%emt 0:02:01]} (23. Qxc5 $2 Bxf5 24. exf5 Nd3 $19) 23... Kh8 {[%emt 0:01:08]} (23... Bxe7 $11 {remains equal.} 24. Qxe5 Qe6 25. Qxe6 fxe6) 24. Nd5 $1 $16 {[%emt 0:01:07]} (24. Bxc5 $2 Nd3 25. e5 Bxe7 26. Bxe7 Qb6+ 27. Bc5 (27. Kh1 Nf2+ 28. Kg1 Nh3+ 29. Kh1 Qg1+ 30. Rxg1 Nf2#) 27... Nxc5 $19) (24. Qxc5 Nd3 25. Qc7 Qd6 26. Qxd6 Rxd6 $17) 24... Nd3 {[%emt 0:00:07]} 25. Nxf6 {[%emt 0:00:16]} Nxe1 {[%emt 0:00:06]} 26. Nh5 $1 {[%emt 0:00:21][%csl Gh5][%cal Rc3g7]} Qg6 {[%emt 0:00:31] White must now prevent ...Nd3.} 27. Nf4 {[%emt 0:00:37] Against Nd3} Nxf3+ {[%emt 0:01:01]} 28. Bxf3 {[%emt 0:00:16]} Qc6 {[%emt 0:00:39]} 29. Nd5 {[%emt 0:02:50]} (29. Qxc5 Bxe4 30. Bh5 g6 $14) 29... Qe6 {[%emt 0:00:49]} 30. Nf4 {[%emt 0:04:36]} (30. Qe3 $16) 30... Qe8 {[%emt 0:02:15]} (30... Qc6 $1 $11) 31. Nh5 $1 {[%emt 0:03:23][%csl Gh5][%cal Rc3g7]} (31. Bxc5 Bxe4 32. Bg4 (32. Bxa7 Rc8 $11) 32... Bc6 $16) 31... f6 {[%emt 0:00:22] [#]} 32. Nxf6 {[%emt 0:11:00][%mdl 512]} gxf6 {[%emt 0:01:12]} 33. Qxf6+ {[%emt 0:00:06]} Kg8 {[%emt 0:00:06] [#]} 34. Bg4 {[%emt 0:01:04]} (34. Qxh6 Qe5 $14) (34. Bxc5 $6 Bxe4 35. Bh5 (35. Bxa7 Bxf3 36. Qxf3 Qe1+ 37. Kg2 Qd2+ 38. Bf2 Qxb2 $15) (35. Bd4 $2 Rxd4 36. Qxd4 Bxf3 $19) 35... Qd7 $14) (34. Bh5 $1 $16 {[%cal Rh5e8][%mdl 512]} Qf8 (34... Qxh5 35. Qxd8+) 35. Qe6+ (35. Bf7+ Qxf7 36. Qxd8+ Qf8 $16) 35... Kh8 36. Be1) 34... Bg6 {[%emt 0:01:02]} (34... Bxe4 $11 35. Qxh6 Bg6) 35. Be6+ {[%emt 0:02:00]} ({White should try} 35. Bxc5 $16 {aiming for Be3.} Kh7 36. Bd4 (36. Bxa7 Bxe4 37. Bb6 Ra8 $14) 36... Rxd4 37. Qxd4) 35... Kh7 $11 {[%emt 0:00:07] Hoping for ...Rd1+.} 36. Bxc5 {[%emt 0:01:43]} Bxe4 {[%emt 0:02:54]} 37. Be7 $2 {[%emt 0:04:47][%mdl 8192]} (37. Bb4 $11 {and White is okay.}) 37... Rd1+ $19 {[%emt 0:01:32]} 38. Kf2 {[%emt 0:00:05]} Qg6 $2 {[%emt 0:00:34]} (38... Qh5 $19 39. h3 (39. Qf7+ $2 Qxf7+ 40. Bxf7 Rd7 $19) 39... Rd2+ 40. Ke3 Rd3+ 41. Kf4 (41. Kxe4 {gets mated.} Qe2+ 42. Kf5 Rf3+ 43. Kg4 Rxf6+ 44. Kh4 Kg6 45. Bg4 Qe5) 41... Rf3+ 42. Kxe4 Rxf6 43. Bxf6 Qe2+ 44. Kf5 Qf2+ 45. Ke5 Qxb2+ 46. Kf5 Qf2+ 47. Ke5 Qb2+ 48. Kf5 Qf2+ 49. Ke5 Qxg3+ 50. Kd5 Qf3+ 51. Ke5 Kg6) 39. Qe5 $1 $15 {[%emt 0:00:55]} Bd3 {[%emt 0:01:34]} (39... Bb1 $15 40. Bc5 (40. Qe2 $2 Rh1 $19) 40... Rd2+ 41. Ke1 Rxh2) 40. Bc5 $11 {[%emt 0:01:14]} Rd2+ {[%emt 0:03:38]} 41. Kg1 {[%emt 0:30:54]} (41. Kf3 $11 {keeps the balance.}) 41... Re2 $40 {[%emt 0:30:41][%mdl 128] Black goes for the king. Chess con chili.} 42. Qc7+ {[%emt 0:00:52]} Qg7 {[%emt 0:00:05]} 43. Qd6 {[%emt 0:01:48][%mdl 8192]} (43. Bg8+ $17 Kh8 44. Qxg7+ Kxg7 45. Bd5) 43... Be4 $2 {[%emt 0:01:21]} (43... Re1+ {mates} 44. Kg2 Qxb2+ 45. Kh3 Bf1+ 46. Kg4 Qe2+ 47. Kh4 Qxh2+ 48. Kg4 Qe2+ 49. Kh4 Qe4+ 50. g4 Qh1+ 51. Kg3 Qg2+ 52. Kf4 Re4+ 53. Kf5 Qf3+ 54. Qf4 Qxf4#) 44. Qd4 {[%emt 0:03:46]} (44. Qd8 $17 Bg6 45. Bd4 Re1+ 46. Kg2) 44... Qxd4+ {[%emt 0:00:23]} 45. Bxd4 $19 {[%emt 0:00:06][%mdl 4096] Endgame KRB-KB. A strong pair of Bishops.} Rg2+ {[%emt 0:00:09]} 46. Kf1 {[%emt 0:00:32][%cal Oe6f5]} Rxh2 {[%emt 0:00:07]} 47. b4 {[%emt 0:01:06]} a6 {[%emt 0:00:33]} 48. a4 {[%emt 0:00:32]} Rd2 {[%emt 0:00:34]} 49. Bc5 {[%emt 0:00:30]} Kg6 {[%emt 0:01:04]} 50. a5 {[%emt 0:00:26]} Bf5 {[%emt 0:02:05]} 51. Bc4 {[%emt 0:00:59]} Bd3+ {[%emt 0:00:07]} 52. Bxd3+ {[%emt 0:00:15]} Rxd3 {[%emt 0:00:06]} 53. Kf2 {[%emt 0:00:05]} (53. Kg2) 53... Kf5 {[%emt 0:00:08] Black is clearly winning.} 54. Bb6 {[%emt 0:00:48]} Kg4 {[%emt 0:00:18]} 55. Bc7 {[%emt 0:00:11]} Rd4 {[%emt 0:00:01] Weighted Error Value: White=0.61/Black=0.47} 0-1

[Event "Germany Countries-chT Youth 2022"]
[Site "Wiesbaden"]
[Date "2022.10.01"]
[Round "2"]
[White "Jaskulski, Jan"]
[Black "Bock, Marlon"]
[Result "0-1"]
[ECO "B33"]
[WhiteElo "1849"]
[BlackElo "1866"]
[Annotator "NA RC COMBH"]
[PlyCount "41"]
[EventDate "2022.09.28"]
[EventType "team-tourn"]
[EventRounds "7"]
[EventCountry "GER"]
[SourceTitle "playchess.com"]
[Source "ChessBase"]
[SourceQuality "1"]
[TimeControl "40/5400+30:1800+30"]

1. e4 {[%emt 0:00:11]} c5 {[%emt 0:00:04]} 2. Nf3 {[%emt 0:00:09]} Nc6 {[%emt 0:00:05]} 3. d4 {[%emt 0:00:03]} cxd4 {[%emt 0:00:06]} 4. Nxd4 {[%emt 0:00:11]} Nf6 {[%emt 0:00:16]} 5. Nc3 {[%emt 0:00:07]} e5 {[%emt 0:00:10]} 6. Ndb5 {[%emt 0:00:22]} d6 {[%emt 0:00:13]} 7. Nd5 {[%emt 0:00:40]} Nxd5 {[%emt 0:00:14]} 8. exd5 {[%emt 0:00:02]} Ne7 {[%emt 0:00:21]} 9. c4 {[%emt 0:00:51]} Ng6 {[%emt 0:00:26]} 10. Qa4 {[%emt 0:00:36]} Bd7 {[%emt 0:01:21]} 11. Qb4 {[%emt 0:00:07]} Bf5 {[%emt 0:02:03]} 12. h4 {[%emt 0:02:14]} a6 {[%emt 0:03:49]} 13. h5 {[%emt 0:05:26]} axb5 {[%emt 0:02:51]} 14. hxg6 {[%emt 0:00:19]} bxc4 {[%emt 0:01:49]} 15. Rxh7 {[%emt 0:11:32]} Rxh7 {[%emt 0:00:13]} 16. gxh7 {[%emt 0:00:07]} Bxh7 {[%emt 0:00:05]} 17. Qxb7 {[%emt 0:00:35]} Be7 {[%emt 0:12:20]} 18. Bxc4 {[%emt 0:07:13]} Rb8 {[%emt 0:08:50]} 19. Qa6 {[%emt 0:07:22]} Kf8 {[%emt 0:04:30]} 20. Kf1 {[%emt 0:16:36]} Bf6 {[%emt 0:08:03]} 21. Bb5 {[%emt 0:07:59]} 0-1

[Event "Germany Countries-chT Youth 2022"]
[Site "Wiesbaden"]
[Date "2022.10.01"]
[Round "2"]
[White "Tovmasyan, Minas"]
[Black "Bosselmann, Tom Linus"]
[Result "0-1"]
[ECO "A57"]
[WhiteElo "1838"]
[BlackElo "2061"]
[Annotator "TA"]
[PlyCount "62"]
[EventDate "2022.09.28"]
[EventType "team-tourn"]
[EventRounds "7"]
[EventCountry "GER"]
[SourceTitle "playchess.com"]
[Source "ChessBase"]
[SourceQuality "1"]
[TimeControl "40/5400+30:1800+30"]

{[%evp 25,62,0,11,-3,37,45,72,72,85,81,75,0,0,0,0,0,0,-77,-63,-137,-137,-137,-145,-139,-115,-350,-357,-323,-146,-194,-130,-1074,-975,-950,-652,-639,-631,-2097,-2037]} 1. d4 {[%emt 0:00:04]} Nf6 {[%emt 0:00:04]} 2. c4 {[%emt 0:00:10]} c5 {[%emt 0:00:41]} 3. d5 {[%emt 0:00:20]} b5 {[%emt 0:00:06]} 4. cxb5 {[%emt 0:00:21]} a6 {[%emt 0:00:06][%cal Ba7a6,Ba6b5,Bb5b4][%mdl 32]} 5. f3 {[%emt 0:01:40]} axb5 {[%emt 0:02:48]} 6. e4 {[%emt 0:00:07]} Qa5+ {[%emt 0:04:29]} 7. Bd2 {[%emt 0:00:15]} b4 {[%emt 0:00:21]} 8. Na3 {[%emt 0:00:27]} d6 {[%emt 0:02:09][%cal Bd7d6,Bd6d5][%mdl 32]} 9. Nc4 {[%emt 0:00:53]} Qd8 {[%emt 0:02:32]} 10. a3 {[%emt 0:03:28]} e6 {[%emt 0:01:42]} 11. dxe6 {[%emt 0:08:25]} Bxe6 {[%emt 0:00:11]} 12. axb4 {[%emt 0:01:37]} Rxa1 {[%emt 0:00:19]} 13. Qxa1 {[%emt 0:00:06]} d5 {[%emt 0:00:27]} 14. Ne5 {[%emt 0:09:22] A57: Benko/Volga Gambit.} Bd6 {[%emt 0:19:37]} 15. Bb5+ {[%emt 0:05:05]} Kf8 {[%emt 0:04:24]} 16. Nd3 {[%emt 0:09:17] [#] aiming for e5. White is better.} dxe4 {[%emt 0:04:49]} 17. bxc5 {[%emt 0:06:17]} ({Reject} 17. Nxc5 Bd5 $11) 17... Be7 {[%emt 0:14:12] [#]} 18. Nf4 $146 {[%emt 0:14:16]} (18. fxe4 $16 {Qa8 is the strong threat.} Nxe4 19. Bb4) ({Predecessor:} 18. fxe4 Nxe4 19. Be3 Bg5 20. Bxg5 Qxg5 21. Ne2 Qd2+ 22. Kf1 Bg4 23. Nf2 Nxf2 24. Qa7 Nxh1 25. Qxb8+ {0-1 (48) Lodici,L (2358)-Gibicar,D (2259) Germany 2017}) 18... Bxc5 $11 {[%emt 0:04:40]} 19. Nxe6+ {[%emt 0:02:56]} fxe6 {[%emt 0:00:06]} 20. Qa4 {[%emt 0:12:38]} Qb6 {[%emt 0:03:35]} 21. Bb4 {[%emt 0:08:08]} (21. Nh3 $11 {remains equal.} exf3 22. gxf3) 21... Kf7 {[%emt 0:00:46] Black is more active.} 22. Bxc5 {[%emt 0:01:30]} ({Better is} 22. Ba5 $1 $15 Bf2+ 23. Kf1) 22... Qxc5 $17 {[%emt 0:00:03]} 23. Ne2 {[%emt 0:04:33] Against Qc1+} exf3 {[%emt 0:03:39]} 24. gxf3 {[%emt 0:00:09]} Rc8 {[%emt 0:00:23]} 25. b3 $2 {[%emt 0:03:00]} (25. Kf1 $17) 25... Qe3 $19 {[%emt 0:02:08][%csl Ge3][%cal Rc8c1]} 26. Bc4 {[%emt 0:01:09] [#]} Nbd7 {[%emt 0:01:38]} (26... Nc6 $1 $19 {[%cal Rc6e5] is more deadly. Strongly threatening ...Ne5.} 27. Rg1 Ne5) 27. Qa6 {[%emt 0:01:26]} (27. Qb4 $17 {was called for.}) 27... Rc7 {[%emt 0:00:43]} (27... Re8 $19 28. Rg1 g5) 28. Kf1 $2 {[%emt 0:02:17][%mdl 8192] This move loses the game for White.} (28. Qa5 $17 Nb6 29. Rg1) 28... Qxf3+ {[%emt 0:00:25] Black is clearly winning.} 29. Kg1 {[%emt 0:00:14]} Qe3+ {[%emt 0:00:18]} 30. Kg2 {[%emt 0:00:09]} Qe4+ {[%emt 0:00:53]} 31. Kg3 {[%emt 0:02:14]} Rxc4 {[%emt 0:01:47] Weighted Error Value: White=0.76/Black=0.63} 0-1

[Event "Germany Countries-chT Youth 2022"]
[Site "Wiesbaden"]
[Date "2022.10.01"]
[Round "2"]
[White "Trunz, Michelle"]
[Black "Haug, Mara"]
[Result "0-1"]
[ECO "A57"]
[WhiteElo "1821"]
[BlackElo "1611"]
[Annotator "NA COMBH"]
[PlyCount "101"]
[EventDate "2022.09.28"]
[EventType "team-tourn"]
[EventRounds "7"]
[EventCountry "GER"]
[SourceTitle "playchess.com"]
[Source "ChessBase"]
[SourceQuality "1"]
[TimeControl "40/5400+30:1800+30"]

1. d4 {[%emt 0:00:02]} Nf6 {[%emt 0:00:09]} 2. c4 {[%emt 0:00:05]} c5 {[%emt 0:00:12]} 3. d5 {[%emt 0:00:03]} b5 {[%emt 0:00:09]} 4. Nd2 {[%emt 0:00:26]} g6 {[%emt 0:01:19]} 5. e4 {[%emt 0:01:07]} Bg7 {[%emt 0:03:44]} 6. Ngf3 {[%emt 0:00:22]} O-O {[%emt 0:02:09]} 7. Qc2 {[%emt 0:01:13]} d6 {[%emt 0:02:08]} 8. Rb1 {[%emt 0:00:27]} Na6 {[%emt 0:05:51]} 9. a3 {[%emt 0:01:24]} b4 {[%emt 0:04:15]} 10. Bd3 {[%emt 0:00:55]} Rb8 {[%emt 0:05:15]} 11. O-O {[%emt 0:00:30]} Bd7 {[%emt 0:02:28]} 12. e5 {[%emt 0:03:48]} Ng4 {[%emt 0:05:17]} 13. exd6 {[%emt 0:01:02]} exd6 {[%emt 0:00:39]} 14. Ne4 {[%emt 0:00:45]} Ne5 {[%emt 0:15:12]} 15. Nxe5 {[%emt 0:02:02]} Bxe5 {[%emt 0:01:17]} 16. Bg5 {[%emt 0:02:06]} f6 {[%emt 0:03:48]} 17. Bh6 {[%emt 0:04:27]} f5 {[%emt 0:07:14]} 18. Bg5 {[%emt 0:03:50]} Qa5 {[%emt 0:02:39]} 19. Nd2 {[%emt 0:02:14]} bxa3 {[%emt 0:03:11]} 20. bxa3 {[%emt 0:01:18]} Qxa3 {[%emt 0:01:28]} 21. Rb3 {[%emt 0:10:22]} Rxb3 {[%emt 0:01:41]} 22. Qxb3 {[%emt 0:00:05]} Qxb3 {[%emt 0:00:40]} 23. Nxb3 {[%emt 0:00:04]} Rb8 {[%emt 0:01:06]} 24. Nd2 {[%emt 0:01:20]} Nb4 {[%emt 0:01:50]} 25. Bb1 {[%emt 0:02:15]} Kf7 {[%emt 0:02:04]} 26. Nf3 {[%emt 0:00:39]} Bg7 {[%emt 0:01:34]} 27. Bf4 {[%emt 0:01:06]} Bf8 {[%emt 0:05:30]} 28. Ng5+ {[%emt 0:02:29]} Kg8 {[%emt 0:02:06]} 29. Re1 {[%emt 0:06:19]} Re8 {[%emt 0:02:06]} 30. Rxe8 {[%emt 0:00:40]} Bxe8 {[%emt 0:00:01]} 31. Ne6 {[%emt 0:01:24]} Be7 {[%emt 0:01:08]} 32. f3 {[%emt 0:01:13]} Bd7 {[%emt 0:02:59]} 33. Nc7 {[%emt 0:00:47]} Ba4 {[%emt 0:02:11]} 34. Kf2 {[%emt 0:02:03]} Bb3 {[%emt 0:00:54]} 35. Nb5 {[%emt 0:03:45]} Bxc4 {[%emt 0:01:06]} 36. Nxa7 {[%emt 0:07:33]} Nxd5 {[%emt 0:01:27]} 37. Bd2 {[%emt 0:00:52]} Nc7 {[%emt 0:03:00]} 38. Nc8 {[%emt 0:02:48]} Kf7 {[%emt 0:01:01]} 39. Bg5 {[%emt 0:02:08]} Bf8 {[%emt 0:03:25]} 40. Nb6 {[%emt 0:08:08]} Be6 {[%emt 0:01:40]} 41. Ke2 {[%emt 0:31:38]} Nd5 {[%emt 0:31:35]} 42. Nxd5 {[%emt 0:00:34]} Bxd5 {[%emt 0:00:40]} 43. Kd3 {[%emt 0:00:16]} Bg7 {[%emt 0:01:01]} 44. Bc2 {[%emt 0:00:52]} c4+ {[%emt 0:01:24]} 45. Kd2 {[%emt 0:00:11]} Bc6 {[%emt 0:00:15]} 46. Be3 {[%emt 0:01:29]} d5 {[%emt 0:00:45]} 47. Bc5 {[%emt 0:00:28]} d4 {[%emt 0:00:00]} 48. Bb1 {[%emt 0:00:00]} Ke6 {[%emt 0:00:00]} 49. h3 {[%emt 0:00:00]} Kd5 {[%emt 0:00:00]} 50. Ba3 {[%emt 0:00:00]} c3+ {[%emt 0:00:00]} 51. Ke1 {[%emt 0:01:01]} 0-1

[Event "Germany Countries-chT Youth 2022"]
[Site "Wiesbaden"]
[Date "2022.10.01"]
[Round "2"]
[White "Buchholz, Maja"]
[Black "Nizamova, Rita"]
[Result "0-1"]
[ECO "C06"]
[WhiteElo "1765"]
[BlackElo "1813"]
[Annotator "NA COMBH"]
[PlyCount "74"]
[EventDate "2022.09.28"]
[EventType "team-tourn"]
[EventRounds "7"]
[EventCountry "GER"]
[SourceTitle "playchess.com"]
[Source "ChessBase"]
[SourceQuality "1"]
[TimeControl "40/5400+30:1800+30"]

1. e4 {[%emt 0:00:02]} e6 {[%emt 0:00:03]} 2. d4 {[%emt 0:00:30]} d5 {[%emt 0:00:30]} 3. Nd2 {[%emt 0:00:30]} Nf6 {[%emt 0:00:30]} 4. e5 {[%emt 0:00:30]} Nfd7 {[%emt 0:00:30]} 5. Bd3 {[%emt 0:00:30]} c5 {[%emt 0:00:30]} 6. c3 {[%emt 0:00:30]} b6 {[%emt 0:00:30]} 7. Ne2 {[%emt 0:00:30]} Ba6 {[%emt 0:00:30]} 8. Nf3 {[%emt 0:00:30]} Bxd3 {[%emt 0:00:30]} 9. Qxd3 {[%emt 0:00:30]} Nc6 {[%emt 0:00:30]} 10. O-O {[%emt 0:00:30]} Be7 {[%emt 0:00:30]} 11. Nf4 {[%emt 0:00:30]} O-O {[%emt 0:00:30]} 12. Be3 {[%emt 0:00:30]} a6 {[%emt 0:00:30]} 13. Rac1 {[%emt 0:00:30]} Re8 {[%emt 0:00:30]} 14. b3 {[%emt 0:00:30]} b5 {[%emt 0:00:30]} 15. Rfd1 {[%emt 0:00:30]} Rc8 {[%emt 0:00:30]} 16. g3 {[%emt 0:00:30]} cxd4 {[%emt 0:00:30]} 17. cxd4 {[%emt 0:00:30]} Qa5 {[%emt 0:00:30]} 18. Qe2 {[%emt 0:00:30]} Nb4 {[%emt 0:00:30]} 19. Rxc8 {[%emt 0:00:30]} Rxc8 {[%emt 0:00:30]} 20. Rd2 {[%emt 0:00:30]} Rc1+ {[%emt 0:00:30]} 21. Kg2 {[%emt 0:00:30]} Ra1 {[%emt 0:00:30]} 22. Nd3 {[%emt 0:00:30]} Nxa2 {[%emt 0:00:30]} 23. Rc2 {[%emt 0:00:30]} Nc3 {[%emt 0:00:30]} 24. Qd2 {[%emt 0:00:30]} b4 {[%emt 0:00:30]} 25. Bg5 {[%emt 0:00:30]} Bf8 {[%emt 0:00:30]} 26. Qf4 {[%emt 0:00:30]} Qb5 {[%emt 0:00:30]} 27. Nde1 {[%emt 0:00:30]} a5 {[%emt 0:00:30]} 28. Bd8 {[%emt 0:00:30]} h6 {[%emt 0:00:30]} 29. g4 {[%emt 0:00:30]} g6 {[%emt 0:00:30]} 30. h4 {[%emt 0:00:30]} Qb8 {[%emt 0:00:30]} 31. Bf6 {[%emt 0:00:30]} Nxf6 {[%emt 0:00:30]} 32. Qxf6 {[%emt 0:00:30]} Bg7 {[%emt 0:00:30]} 33. Qf4 {[%emt 0:00:30]} Qb5 {[%emt 0:00:30]} 34. Qe3 {[%emt 0:00:30]} Rb1 {[%emt 0:00:30]} 35. Nd2 {[%emt 0:00:30]} Ra1 {[%emt 0:00:30]} 36. f4 {[%emt 0:00:30]} Qe2+ {[%emt 0:00:30]} 37. Qxe2 {[%emt 0:00:30]} Nxe2 {[%emt 0:00:30]} 0-1